fUSD/lending_fUSD_20240821
["ID","MTS","AMOUNT","RATE_DAILY","PERIOD"]
[335497703,1724278232231,-546.45280899,9.917e-05,2]
[335497704,1724278232243,-1908.19961553,9.917e-05,2]
[335497705,1724278232254,-2790.63283039,9.917e-05,2]
[335497706,1724278232270,-5918.18474509,9.917e-05,2]
[335497707,1724278232279,-370.51643875,0.0001,2]
[335497708,1724278232289,-155.36400518,0.0001,2]
[335497709,1724278232298,-1050.0,0.0001,2]
[335497710,1724278232308,-170.82,0.00010001,2]
[335497711,1724278232318,-5091.0,0.00010072,2]
[335497712,1724278232327,-2000.0,0.000101,2]
[335497713,1724278232337,-158.22,0.00010399,2]
[335497714,1724278232347,-609.33,0.00010472,2]
[335497715,1724278232356,-1000.0,0.000107,2]
[335497716,1724278232366,-2500.0,0.000107,2]
[335497717,1724278232375,-3033.53018522,0.00010713,2]
[335497718,1724278232384,-150.0,0.00010789,2]
[335497719,1724278232394,-275.51,0.0001079,2]
[335497720,1724278232404,-275.51,0.0001079,2]
[335497721,1724278232413,-275.51,0.0001079,2]
[335497722,1724278232423,-275.51,0.0001079,2]
[335497723,1724278232432,-275.51,0.0001079,2]
[335497724,1724278232441,-275.51,0.0001079,2]
[335497725,1724278232451,-275.51,0.0001079,2]
[335497726,1724278232461,-275.51,0.0001079,2]
[335497729,1724278232627,-275.51,0.0001079,2]
[335497730,1724278232638,-275.51,0.0001079,2]
[335497731,1724278232647,-275.51,0.0001079,2]
[335497732,1724278232657,-275.51,0.0001079,2]
[335497733,1724278232667,-275.51,0.0001079,2]
[335497734,1724278232676,-275.51,0.0001079,2]
[335497735,1724278232685,-275.51,0.0001079,2]
[335497736,1724278232694,-275.51,0.0001079,2]
[335497737,1724278232703,-275.51,0.0001079,2]
[335497738,1724278232713,-275.51,0.0001079,2]
[335497739,1724278232723,-275.51,0.0001079,2]
[335497740,1724278232732,-275.51,0.0001079,2]
[335497741,1724278232742,-275.51,0.0001079,2]
[335497742,1724278232751,-275.51,0.0001079,2]
[335497743,1724278232760,-275.51,0.0001079,2]
[335497744,1724278232769,-275.51,0.0001079,2]
[335497745,1724278232779,-275.51,0.0001079,2]
[335497746,1724278232788,-275.51,0.0001079,2]
[335497747,1724278232798,-275.51,0.0001079,2]
[335497748,1724278232809,-275.51,0.0001079,2]
[335497749,1724278232821,-275.51,0.0001079,2]
[335497750,1724278232830,-275.51,0.0001079,2]
[335497751,1724278232839,-275.51,0.0001079,2]
[335497752,1724278232849,-275.51,0.0001079,2]
[335497753,1724278232859,-275.51,0.0001079,2]
[335497754,1724278232869,-275.51,0.0001079,2]
[335497755,1724278232878,-275.51,0.0001079,2]
[335497756,1724278232888,-275.51,0.0001079,2]
[335497757,1724278232900,-275.51,0.0001079,2]
[335497758,1724278232910,-275.51,0.0001079,2]
[335497759,1724278232919,-275.51,0.0001079,2]
[335497760,1724278232928,-275.51,0.0001079,2]
[335497761,1724278232938,-275.51,0.0001079,2]
[335497762,1724278232947,-275.51,0.0001079,2]
[335497763,1724278232956,-275.51,0.0001079,2]
[335497764,1724278232966,-275.51,0.0001079,2]
[335497765,1724278232976,-275.51,0.0001079,2]
[335497766,1724278232986,-275.51,0.0001079,2]
[335497767,1724278232995,-275.51,0.0001079,2]
[335497768,1724278233004,-275.51,0.0001079,2]
[335497769,1724278233013,-275.51,0.0001079,2]
[335497770,1724278233023,-275.51,0.0001079,2]
[335497771,1724278233032,-275.51,0.0001079,2]
[335497772,1724278233042,-275.51,0.0001079,2]
[335497773,1724278233051,-275.51,0.0001079,2]
[335497774,1724278233060,-275.51,0.0001079,2]
[335497775,1724278233070,-275.51,0.0001079,2]
[335497776,1724278233079,-275.51,0.0001079,2]
[335497777,1724278233089,-275.51,0.0001079,2]
[335497778,1724278233099,-275.51,0.0001079,2]
[335497779,1724278233109,-275.51,0.0001079,2]
[335497780,1724278233119,-275.51,0.0001079,2]
[335497781,1724278233128,-275.51,0.0001079,2]
[335497782,1724278233138,-275.51,0.0001079,2]
[335497783,1724278233148,-275.51,0.0001079,2]
[335497784,1724278233157,-275.51,0.0001079,2]
[335497785,1724278233167,-275.51,0.0001079,2]
[335497786,1724278233176,-275.51,0.0001079,2]
[335497787,1724278233185,-275.51,0.0001079,2]
[335497788,1724278233195,-275.51,0.0001079,2]
[335497789,1724278233205,-275.51,0.0001079,2]
[335497790,1724278233215,-275.51,0.0001079,2]
[335497791,1724278233226,-275.51,0.0001079,2]
[335497792,1724278233237,-275.51,0.0001079,2]
[335497793,1724278233247,-275.51,0.0001079,2]
[335497794,1724278233260,-275.51,0.0001079,2]
[335497795,1724278233270,-275.51,0.0001079,2]
[335497796,1724278233280,-275.51,0.0001079,2]
[335497797,1724278233290,-275.51,0.0001079,2]
[335497798,1724278233300,-275.51,0.0001079,2]
[335497799,1724278233310,-275.51,0.0001079,2]
[335497800,1724278233320,-275.51,0.0001079,2]
[335497801,1724278233329,-275.51,0.0001079,2]
[335497802,1724278233338,-275.51,0.0001079,2]
[335497803,1724278233348,-275.51,0.0001079,2]
[335497804,1724278233357,-275.51,0.0001079,2]
[335497805,1724278233367,-275.51,0.0001079,2]
[335497806,1724278233376,-275.51,0.0001079,2]
[335497807,1724278233386,-275.51,0.0001079,2]
[335497808,1724278233395,-275.51,0.0001079,2]
[335497809,1724278233405,-275.51,0.0001079,2]
[335497810,1724278233415,-275.51,0.0001079,2]
[335497811,1724278233424,-275.51,0.0001079,2]
[335497812,1724278233434,-275.51,0.0001079,2]
[335497813,1724278233443,-275.51,0.0001079,2]
[335497814,1724278233452,-275.51,0.0001079,2]
[335497815,1724278233462,-275.51,0.0001079,2]
[335497816,1724278233473,-275.51,0.0001079,2]
[335497817,1724278233483,-275.51,0.0001079,2]
[335497818,1724278233493,-275.51,0.0001079,2]
[335497819,1724278233503,-275.51,0.0001079,2]
[335497820,1724278233513,-198731.45556925,0.000108,2]
[335497821,1724278233526,-959.0,0.000108,2]
[335497822,1724278233550,-669.94125223,0.000108,2]
[335497823,1724278233562,-1143.19843654,0.000108,2]
[335497824,1724278233573,-307.97022936,0.000108,2]
[335497825,1724278233584,-2743.0,0.000108,2]
[335497826,1724278233596,-2584.73800879,0.000108,2]
[335497827,1724278233611,-5371.78642001,0.000108,2]
[335497828,1724278233623,-535.8515108,0.000108,2]
[335497829,1724278233634,-1000.0,0.000108,2]
[335497830,1724278233646,-1409.39774727,0.000108,2]
[335497837,1724278238187,-60924.39334028,0.000108,2]
[335497839,1724278238198,-58096.69761641,0.000108,2]
[335497841,1724278238209,-1849.01762945,0.000108,2]
[335497842,1724278238220,-4070.08297907,0.000108,2]
[335497843,1724278238235,-668.26362144,0.000108,2]
[335497844,1724278238290,-795.0000001,0.000108,2]
[335497845,1724278238760,-7991.34343518,0.000108,2]
[335497846,1724278238774,-17758.03160267,0.000108,2]
[335497847,1724278238785,-1500.0,0.00010817,2]
[335497848,1724278238794,-1500.0,0.00010822,2]
[335497849,1724278238804,-326.86220804,0.00010899,2]
[335497850,1724278238815,-326.86220804,0.00010899,2]
[335497851,1724278238826,-326.86220804,0.00010899,2]
[335497852,1724278238836,-326.86220804,0.00010899,2]
[335497853,1724278238847,-326.86220804,0.00010899,2]
[335497854,1724278238858,-326.86220804,0.00010899,2]
[335497855,1724278238867,-326.86220804,0.00010899,2]
[335497856,1724278238877,-454.75953035,0.00010899,2]
[335497857,1724278238887,-454.75953035,0.00010899,2]
[335497858,1724278238897,-155.0,0.00010899,2]
[335497859,1724278238906,-8101.12106763,0.000109,2]
[335497860,1724278238927,-468.50164004,0.000109,2]
[335497861,1724278238943,-9703.99039233,0.000109,2]
[335497862,1724278238954,-303.8659,0.000109,2]
[335497863,1724278238965,-2324.21109593,0.000109,2]
[335497864,1724278238975,-501.43999148,0.000109,2]
[335497865,1724278238985,-326.86220804,0.000109,2]
[335497866,1724278238996,-201.78608961,0.000109,2]
[335497867,1724278239007,-420.0,0.00010907,2]
[335497868,1724278239017,-838.31,0.00010928,2]
[335497869,1724278239026,-207.58549231,0.00010949,2]
[335497870,1724278239036,-500.0,0.00010958,2]
[335497871,1724278239045,-500.0,0.00010958,2]
[335497872,1724278239055,-500.0,0.00010958,2]
[335497873,1724278239065,-500.0,0.00010958,2]
[335497874,1724278239075,-500.0,0.00010958,2]
[335497875,1724278239084,-500.0,0.00010958,2]
[335497876,1724278239094,-500.0,0.00010958,2]
[335497877,1724278239104,-500.0,0.00010958,2]
[335497878,1724278239113,-500.0,0.00010958,2]
[335497879,1724278239122,-500.0,0.00010958,2]
[335497880,1724278239132,-500.0,0.00010958,2]
[335497881,1724278239141,-500.0,0.00010958,2]
[335497882,1724278239151,-500.0,0.00010958,2]
[335497883,1724278239161,-500.0,0.00010958,2]
[335497884,1724278239171,-500.0,0.00010958,2]
[335497885,1724278239180,-500.0,0.00010958,2]
[335497886,1724278239189,-500.0,0.00010958,2]
[335497887,1724278239199,-500.0,0.00010958,2]
[335497888,1724278239209,-500.0,0.00010958,2]
[335497889,1724278239218,-569.49928767,0.00010958,2]
[335497890,1724278239229,-500.0,0.00010958,2]
[335497891,1724278239239,-500.0,0.00010958,2]
[335497892,1724278239249,-500.0,0.00010958,2]
[335497893,1724278239259,-172.62,0.00010959,2]
[335497894,1724278239268,-150.0,0.00010959,2]
[335497895,1724278239278,-250.0,0.00010959,2]
[335497896,1724278239287,-157.51,0.00010959,2]
[335497897,1724278239297,-464.05,0.00010959,2]
[335497898,1724278239306,-356.68,0.00010959,2]
[335497899,1724278239316,-1500.0,0.00010961,2]
[335497900,1724278239325,-1361.24369803,0.00010971,2]
[335497901,1724278239335,-208.71787702,0.00010973,2]
[335497902,1724278239344,-400.0,0.00010973,2]
[335497903,1724278239353,-431.27958502,0.00010973,2]
[335497904,1724278239363,-1500.0,0.00010973,2]
[335497905,1724278239372,-506.72788,0.0001099,2]
[335497906,1724278239381,-150.0,0.00010995,2]
[335497907,1724278239391,-150.0,0.00010995,2]
[335497908,1724278239400,-150.0,0.00010995,2]
[335497909,1724278239409,-23119.8528373,0.00010995,2]
[335497910,1724278239419,-8520.8502875,0.00010995,2]
[335497911,1724278239428,-985.1447538,0.00010995,2]
[335497912,1724278239438,-18073.1938734,0.00010995,2]
[335497913,1724278239447,-1208.5674347,0.00010995,2]
[335497914,1724278239456,-5310.1984378,0.00010995,2]
[335497915,1724278239466,-150.0,0.00010996,2]
[335497916,1724278239477,-150.0,0.00010996,2]
[335497917,1724278239486,-150.0,0.00010996,2]
[335497918,1724278239496,-1127.10607763,0.00010997,2]
[335497919,1724278239505,-150.0,0.00010997,2]
[335497920,1724278239515,-150.0,0.00010997,2]
[335497921,1724278239524,-150.0,0.00010997,2]
[335497922,1724278239534,-9016.84862104,0.00010997,2]
[335497923,1724278239544,-150.0,0.00010998,2]
[335497924,1724278239553,-150.0,0.00010998,2]
[335497925,1724278239562,-150.0,0.00010998,2]
[335497926,1724278239571,-150.01,0.00010999,2]
[335497927,1724278239580,-574.0,0.00011,2]
[335497928,1724278239589,-202236.68695531,0.00011,2]
[335497929,1724278239606,-968.719089,0.00011,2]
[335497930,1724278239617,-617.26376295,0.00011,2]
[335497931,1724278239632,-319.8,0.00011,2]
[335497932,1724278239652,-311.21120683,0.00011,2]
[335497938,1724278240308,-15240.96322548,0.00011,2]
[335497939,1724278240383,-607.5499219,0.00011,2]
[335497940,1724278240396,-1537.7543914,0.00011,2]
[335497941,1724278240475,-147875.07623532,0.00011,2]
[335497942,1724278240484,-63510.9030884,0.00011,2]
[335497943,1724278240676,-15485967.0511775,0.00011,2]
[335497944,1724278240688,-1159658.61328137,0.00011,2]
[335497945,1724278240708,-500.54994624,0.00011,2]
[335497946,1724278243281,-983.40201224,0.00011,2]
[335497947,1724278243356,-11339.79333542,0.00011,2]
[335497948,1724278243367,-636.82035561,0.00011,2]
[335497949,1724278243496,-832.28687525,0.00011,2]
[335497968,1724278246466,-515.0,0.00011,2]
[335497969,1724278246476,-2630.21205917,0.00011,2]
[335497970,1724278246493,-3144.75596649,0.00011,2]
[335497971,1724278246504,-253.52,0.00011,2]
[335497972,1724278246515,-3072.68298562,0.00011,2]
[335497973,1724278246527,-1482.59,0.00011,2]
[335497993,1724278263205,150.0,9.865e-05,2]
[335497994,1724278263227,150.0,9.865e-05,2]
[335497995,1724278263249,150.0,9.865e-05,2]
[335497996,1724278263272,150.0,9.865e-05,2]
[335497997,1724278263293,150.0,9.865e-05,2]
[335497998,1724278263314,150.0,9.865e-05,2]
[335497999,1724278263335,150.0,9.865e-05,2]
[335498000,1724278263355,150.0,9.865e-05,2]
[335498001,1724278263375,150.0,9.865e-05,2]
[335498002,1724278263396,150.0,9.865e-05,2]
[335498003,1724278263416,150.0,9.865e-05,2]
[335498004,1724278263436,150.0,9.865e-05,2]
[335498005,1724278263456,150.0,9.865e-05,2]
[335498006,1724278263476,150.0,9.865e-05,2]
[335498007,1724278263506,150.0,9.865e-05,2]
[335498008,1724278263527,150.0,9.865e-05,2]
[335498009,1724278263547,150.0,9.865e-05,2]
[335498010,1724278263571,150.0,9.865e-05,2]
[335498011,1724278263592,150.0,9.865e-05,2]
[335498012,1724278263613,150.0,9.865e-05,2]
[335498013,1724278263637,73.58430273,9.865e-05,2]
[335498014,1724278280519,206.09715233,9.865e-05,2]
[335498015,1724278289506,150.0,9.815e-05,2]
[335498016,1724278289526,150.0,9.815e-05,2]
[335498017,1724278289547,150.0,9.815e-05,2]
[335498018,1724278289569,150.0,9.815e-05,2]
[335498019,1724278289589,150.0,9.815e-05,2]
[335498020,1724278289610,150.0,9.815e-05,2]
[335498021,1724278289630,150.0,9.815e-05,2]
[335498022,1724278289651,150.0,9.815e-05,2]
[335498023,1724278289671,158.56296123,9.815e-05,2]
[335498024,1724278289690,1107.20643877,9.815e-05,2]
[335498025,1724278312074,600.0,9.865e-05,2]
[335498029,1724278345039,291.75703505,9.865e-05,2]
[335498030,1724278354208,967.56139261,9.865e-05,2]
[335498031,1724278389521,900.0,9.865e-05,2]
[335498032,1724278422283,165.49,9.963e-05,2]
[335498033,1724278424184,250.0,9.963e-05,2]
[335498034,1724278448266,299.37,9.963e-05,2]
[335498035,1724278469956,708.97,8.219e-05,2]
[335498036,1724278471513,467.01,9.963e-05,2]
[335498037,1724278488603,1680.5,9.961e-05,2]
[335498038,1724278537539,440.58,9.97e-05,2]
[335498039,1724278566784,590.65,9.926e-05,2]
[335498040,1724278633280,1000.0,9.925e-05,2]
[335498041,1724278667584,394.76,9.916e-05,2]
[335498042,1724278764332,450.0,9.871e-05,2]
[335498043,1724278774292,1269.9153111,9.916e-05,2]
[335498047,1724278807906,200.0,9.882e-05,2]
[335498050,1724278880928,250.0,9.848e-05,2]
[335498051,1724278894487,153.96,9.84e-05,2]
[335498053,1724278922414,276.81155444,0.0001,2]
[335498054,1724278947952,673.52,8.219e-05,2]
[335498055,1724278955482,170.51759848,0.0001,2]
[335498056,1724278959398,181.97999253,0.0001,2]
[335498057,1724279025506,1051.23408298,0.0001,2]
[335498058,1724279035414,162.85453106,0.0001,2]
[335498059,1724279044244,485.07840464,0.0001,2]
[335498060,1724279046854,181.97999253,0.0001,2]
[335498061,1724279054862,181.97999253,0.0001,2]
[335498062,1724279055350,1051.23408298,0.0001,2]
[335498063,1724279071665,295.32,9.853e-05,2]
[335498064,1724279099118,150.0,9.976e-05,2]
[335498065,1724279102573,150.0,9.888e-05,2]
[335498066,1724279113359,150.0,9.888e-05,2]
[335498067,1724279119523,2375.10824674,9e-05,2]
[335498069,1724279153930,4491.09998104,6.94e-05,2]
[335498072,1724279183394,962.80465455,9.999e-05,2]
[335498073,1724279187791,1050.0,0.0001,2]
[335498074,1724279191787,1215.58,9.94e-05,2]
[335498075,1724279213394,962.80465455,9.999e-05,2]
[335498076,1724279233300,60.00879219,9.999e-05,2]
[335498077,1724279234755,150.0,9.9e-05,3]
[335498078,1724279234776,150.0,9.9e-05,3]
[335498079,1724279234798,150.0,9.9e-05,3]
[335498080,1724279234819,50.0,9.9e-05,3]
[335498081,1724279330260,100.0,9.9e-05,2]
[335498082,1724279330283,1152.74082596,9.9e-05,2]
[335498083,1724279354045,250.0,9.74e-05,2]
[335498084,1724279356595,1465.86187704,9.9e-05,2]
[335498095,1724279372994,170.32,9.737e-05,2]
[335498096,1724279378363,1000.0,9.737e-05,2]
[335498097,1724279405252,3639.28045933,9.86e-05,2]
[335498098,1724279405279,10000.0,9.86e-05,2]
[335498099,1724279405305,1856.12069352,9.86e-05,2]
[335498121,1724279432407,-450.50241639,0.0001,3]
[335498123,1724279432419,-635.97483763,0.0001,3]
[335498125,1724279432431,-13.52274598,0.0001,3]
[335498126,1724279432440,-516.47725402,0.0001,2]
[335498127,1724279432451,-2283.49098941,0.0001,2]
[335498128,1724279432461,-155.0,0.00010009,2]
[335498129,1724279432470,-155.0,0.00010009,2]
[335498130,1724279432479,-155.0,0.00010026,2]
[335498131,1724279432489,-208.05034359,0.000101,2]
[335498132,1724279432499,-1600.0,0.000101,3]
[335498133,1724279432508,-2200.0,0.000102,3]
[335498134,1724279432518,-2800.0,0.000103,3]
[335498135,1724279432528,-687.03,0.000103,2]
[335498136,1724279432537,-500.0,0.000104,3]
[335498137,1724279432546,-150.0,0.00010437,2]
[335498138,1724279432555,-673.52,0.00010468,2]
[335498139,1724279432564,-299.99,0.00010471,2]
[335498140,1724279432573,-500.0,0.000105,3]
[335498141,1724279432583,-454.75953035,0.00010505,2]
[335498142,1724279432592,-454.75953035,0.00010505,2]
[335498143,1724279432602,-500.0,0.000106,3]
[335498144,1724279432612,-150.0,0.00010699,2]
[335498145,1724279432621,-26747.8837,0.000107,2]
[335498146,1724279432630,-4913.7551,0.000107,2]
[335498147,1724279432639,-4301.345,0.000107,2]
[335498148,1724279432648,-208.05034359,0.000107,2]
[335498149,1724279432657,-408.81953039,0.000107,3]
[335498150,1724279432669,-91.18046961,0.000107,3]
[335498151,1724279432679,-475.95953039,0.000107,2]
[335498152,1724279432690,-524.04046961,0.000107,2]
[335498153,1724279432699,-1224.0,0.000107,2]
[335498154,1724279432708,-243.77855392,0.000108,2]
[335498155,1724279432718,-198.59404608,0.000108,2]
[335498156,1724279432727,-449.5209,0.000108,2]
[335498157,1724279432737,-850.83,0.000108,2]
[335498158,1724279432746,-1100.0,0.000108,3]
[335498159,1724279432755,-3034.58196902,0.00010861,2]
[335498160,1724279432765,-3532.94625659,0.00010861,2]
[335498161,1724279432774,-2831.51713,0.0001089,2]
[335498162,1724279432783,-2831.51714,0.0001089,2]
[335498163,1724279432792,-161.69514442,0.00010899,2]
[335498164,1724279432801,-161.69514439,0.00010899,2]
[335498165,1724279432810,-161.69514439,0.00010899,2]
[335498166,1724279432820,-161.69514439,0.00010899,2]
[335498167,1724279432830,-161.69514439,0.00010899,2]
[335498168,1724279432839,-161.69514439,0.00010899,2]
[335498169,1724279432848,-161.69514439,0.00010899,2]
[335498170,1724279432858,-161.69514439,0.00010899,2]
[335498171,1724279432867,-161.69514439,0.00010899,2]
[335498172,1724279432876,-34080.0869,0.000109,2]
[335498173,1724279432886,-1000.0,0.000109,2]
[335498174,1724279432896,-82059.77177079,0.000109,2]
[335498175,1724279432909,-2874.68606014,0.000109,2]
[335498176,1724279432937,-12429.35416907,0.000109,2]
[335498177,1724279432948,-250.71999573,0.000109,2]
[335498178,1724279432959,-459.6266,0.000109,2]
[335498179,1724279432968,-2831.51714,0.000109,2]
[335498180,1724279432980,-161.69514439,0.000109,2]
[335498181,1724279432990,-19.51017353,0.000109,2]
[335498182,1724279433002,-1690.21344572,0.000109,2]
[335498183,1724279433012,-161.40044995,0.000109,2]
[335498184,1724279433021,-686.7663419,0.00010909,2]
[335498185,1724279433031,-2831.51714,0.0001094,2]
[335498186,1724279433041,-1000.0,0.00010954,2]
[335498187,1724279433050,-155.84,0.00010959,2]
[335498188,1724279433060,-150.0,0.00010959,2]
[335498189,1724279433069,-250.0,0.00010959,2]
[335498190,1724279433079,-201.13,0.00010959,2]
[335498191,1724279433089,-200.0,0.00010973,2]
[335498192,1724279433098,-1202.55759548,0.0001098,2]
[335498193,1724279433110,-684.71908266,0.0001098,2]
[335498194,1724279433122,-541.0092199,0.0001098,2]
[335498195,1724279433136,-403.23124196,0.0001098,2]
[335498196,1724279433145,-99.67598699,0.00010986,2]
[335498197,1724279433157,-123.54253301,0.00010986,2]
[335498198,1724279433167,-280.35,0.00010986,2]
[335498199,1724279433177,-150.0,0.00010995,2]
[335498200,1724279433187,-150.0,0.00010995,2]
[335498201,1724279433200,-150.0,0.00010995,2]
[335498202,1724279433210,-140.98322143,0.00010995,2]
[335498203,1724279433222,-865.31617129,0.00010995,2]
[335498204,1724279433244,-438.97877864,0.00010995,2]
[335498205,1724279433272,-36.48049364,0.00010995,2]
[335498206,1724279433284,-5841.0008586,0.00010995,2]
[335498207,1724279433295,-1542.7373985,0.00010995,2]
[335498208,1724279433306,-150.0,0.00010996,2]
[335498209,1724279433315,-150.0,0.00010996,2]
[335498210,1724279433326,-150.0,0.00010996,2]
[335498211,1724279433336,-150.0,0.00010997,2]
[335498212,1724279433346,-150.0,0.00010997,2]
[335498213,1724279433356,-141.51117719,0.00010997,2]
[335498214,1724279433448,377.35855902,9.9e-05,2]
[335498217,1724279438348,-454.75953035,0.00010471,2]
[335498218,1724279438358,-361.19436882,0.000106,2]
[335498219,1724279438430,-796.80563118,0.000106,2]
[335498220,1724279438439,-1244.0,0.000109,2]
[335498221,1724279438448,-8.48882281,0.00010997,2]
[335498222,1724279438458,-215.29269057,0.00010997,2]
[335498223,1724279438467,-150.0,0.00010998,2]
[335498224,1724279438476,-150.0,0.00010998,2]
[335498225,1724279438486,-150.0,0.00010998,2]
[335498226,1724279438495,-150.0,0.00010998,2]
[335498227,1724279438505,-150.0,0.00010998,2]
[335498228,1724279438515,-150.0,0.00010998,2]
[335498229,1724279438525,-3365.0213606,0.00010998,2]
[335498230,1724279438534,-1031.54405098,0.00010999,3]
[335498231,1724279438545,-1031.54405097,0.00010999,3]
[335498232,1724279438554,-218.40329671,0.00010999,2]
[335498233,1724279438563,-433.47869488,0.00010999,2]
[335498234,1724279438572,-150.99456627,0.00010999,2]
[335498235,1724279438581,-694.54299735,0.00010999,2]
[335498236,1724279438590,-199.30226172,0.00010999,2]
[335498237,1724279438599,-500.0,0.00010999,2]
[335498238,1724279438608,-500.0,0.00010999,2]
[335498239,1724279438618,-500.0,0.00010999,2]
[335498240,1724279438627,-491.88157596,0.00010999,2]
[335498245,1724279438928,-8.11842404,0.00010999,2]
[335498246,1724279438938,-500.0,0.00010999,2]
[335498247,1724279438947,-111.88157596,0.00010999,2]
[335498248,1724279438959,-388.11842404,0.00010999,2]
[335498249,1724279438968,-500.0,0.00010999,2]
[335498250,1724279438977,-500.0,0.00010999,2]
[335498251,1724279438987,-500.0,0.00010999,2]
[335498253,1724279438997,-500.0,0.00010999,2]
[335498254,1724279439006,-500.0,0.00010999,2]
[335498256,1724279439015,-500.0,0.00010999,2]
[335498258,1724279439025,-500.0,0.00010999,2]
[335498260,1724279439034,-500.0,0.00010999,2]
[335498262,1724279439044,-500.0,0.00010999,2]
[335498264,1724279439053,-500.0,0.00010999,2]
[335498265,1724279439063,-500.0,0.00010999,2]
[335498267,1724279439072,-500.0,0.00010999,2]
[335498269,1724279439082,-500.0,0.00010999,2]
[335498271,1724279439091,-500.0,0.00010999,2]
[335498273,1724279439100,-500.0,0.00010999,2]
[335498275,1724279439110,-500.0,0.00010999,2]
[335498276,1724279439119,-500.0,0.00010999,2]
[335498278,1724279439129,-500.0,0.00010999,2]
[335498280,1724279439139,-500.0,0.00010999,2]
[335498281,1724279439148,-200.37104113,0.00010999,2]
[335498282,1724279439158,-660.0,0.00011,2]
[335498283,1724279439166,-26421.92978522,0.00011,2]
[335498284,1724279439188,-5319.95843917,0.00011,2]
[335498285,1724279439202,-563.31326908,0.00011,2]
[335498286,1724279439213,-867.57638522,0.00011,2]
[335498287,1724279439225,-7293.58596012,0.00011,2]
[335498288,1724279439236,-8233.67288528,0.00011,2]
[335498289,1724279439248,-1114.47748706,0.00011,2]
[335498290,1724279439260,-5889.5837,0.00011,2]
[335498291,1724279439271,-329.43847413,0.00011,2]
[335498300,1724279440808,-0.07174358,0.00011,2]
[335498301,1724279440823,-15182.36588571,0.00011,2]
[335498302,1724279440835,-1600.0,0.00011,2]
[335498303,1724279440846,-1411.2,0.00011,2]
[335498304,1724279440857,-48213.35892577,0.00011,2]
[335498305,1724279440872,-62416.97945376,0.00011,2]
[335498306,1724279440881,-172135.24789631,0.00011,2]
[335498307,1724279440892,-56665.2370869,0.00011,2]
[335498308,1724279440903,-1730.84596,0.00011,2]
[335498309,1724279440914,-792.7251721,0.00011,2]
[335498323,1724279443445,-191.52496414,0.000109,2]
[335498324,1724279443454,-92276.06927664,0.00011,2]
[335498325,1724279443467,-371406.70299584,0.00011,2]
[335498326,1724279443587,-501.7359999,0.00011,2]
[335498330,1724279446476,-3283.46653717,0.00011,2]
[335498331,1724279446487,-188126.17105494,0.00011,2]
[335498332,1724279446498,-521.20184298,0.00011,2]
[335498333,1724279446509,-1102.43613394,0.00011,2]
[335498334,1724279446627,-216.73934744,0.00010999,2]
[335498335,1724279446636,-219.19939942,0.00011,2]
[335498336,1724279446647,-608.68038004,0.00011,2]
[335498337,1724279446658,-3795.64476265,0.00011,2]
[335498338,1724279446669,-1850.75450676,0.00011,2]
[335498339,1724279446709,-339615.55883646,0.00011,2]
[335498341,1724279487074,674.48,8.219e-05,2]
[335498347,1724279595153,693.15255897,8.219e-05,2]
[335498348,1724279596579,6398.88818849,8.219e-05,2]